Cogmind - Beta 13 @@@ ROGUE MODE // 2024.04.01 @ 19:53:09 Player: BigMaxPorter Result: Destroyed by G-34 Mercenary with Small Laser Performance ------------- Evolutions (1) 500 Regions Visited (2) 400 Robots Destroyed (12) 60 Value Destroyed (275) 275 Prototype IDs (0) 0 Alien Tech Used (0) 0 Bonus (0) 0 TOTAL SCORE: 1235 Bonus ------- None Cogmind --------- Core Integrity 0/400 Matter 245/300 Energy 265/265 System Corruption 0% Temperature Cool (6) Movement Core (850) Ox16 Location -9/Materials Parts ------- > --- POWER (1) -------- Improved Ion Engine > --- PROPULSION (3) --- (None) > --- UTILITY (3) ------ High-capacity Storage Unit Seismic Detector > --- WEAPON (2) ------- Medium Laser > --- INVENTORY (20) --- Light Treads Aluminum Leg Heat Sink Small Laser Peak State ------------ > --- POWER ------------ Ion Engine > --- PROPULSION ------- Aluminum Leg Aluminum Leg Aluminum Leg > --- UTILITY ---------- Small Storage Unit Seismic Detector > --- WEAPON ----------- Medium Laser Beam Cannon > --- INVENTORY -------- Ion Engine Light Treads Light Treads Medium Laser Small Laser Beam Cannon Assault Rifle [Rating: 8] Favorites ----------- Power Ion Engine Engine Ion Engine Propulsion Aluminum Leg Treads Light Treads Leg Aluminum Leg Utility Small Storage Unit Device Seismic Detector Storage Small Storage Unit Weapon Medium Laser Energy Gun Medium Laser Energy Cannon Beam Cannon Ballistic Gun Assault Rifle Build | -11 -10 -9 ------- Run | Yrd Mat Mat Slots Evolved 2 | . . 2 Power . | . . . Propulsion 1 | . . 1 Utility 1 | . . 1 Weapon . | . . . Parts Attached 25 | 6 2 17 Power 4 | 1 . 3 Engine 4 | 1 . 3 Core . | . . . Reactor . | . . . Propulsion 9 | 2 . 7 Treads 5 | . . 5 Leg 4 | 2 . 2 Wheel . | . . . Hover . | . . . Flight . | . . . Utility 3 | 1 1 1 Device 1 | . 1 . Storage 2 | 1 . 1 Processor . | . . . Hackware . | . . . Protection . | . . . Artifact . | . . . Weapon 9 | 2 1 6 Energy Gun 5 | 1 . 4 Energy Cannon 2 | . 1 1 Ballistic Gun 2 | 1 . 1 Ballistic Cannon . | . . . Launcher . | . . . Special Weapon . | . . . Impact Weapon . | . . . Slashing Weapon . | . . . Piercing Weapon . | . . . Special Melee Weapon . | . . . Unidentified Prototypes . | . . . Parts Lost 9 | . . 9 Power 2 | . . 2 Propulsion 3 | . . 3 Utility 1 | . . 1 Weapon 3 | . . 3 Highest Loss Streak 5 | . . 5 To Critical Strikes . | . . . Average Slot Usage (%) 79 | . 95 68 Engine 7 | . 14 3 Treads 6 | . . 10 Leg 16 | . 28 9 Device 10 | . 10 11 Storage 13 | . 14 13 Energy Gun 9 | . 14 6 Energy Cannon 6 | . 1 9 Ballistic Gun 8 | . 12 5 Naked Turns . | . . . Heaviest Build 52 | 14 16 52 Greatest Support 60 | 20 20 60 Greatest Overweight (x) 17 | . . 17 Average Overweight (x) . | . . 1 Largest Inventory Capacity 20 | 8 8 20 Average Capacity 10 | 7 8 13 Most Carried 10 | 6 8 10 Average Carried 6 | 2 7 6 Final Capacity 20 | 8 8 20 Final Carried 8 | 6 8 4 Class Distribution -------------------- 100% | Mutant Dominant Class ---------------- Mutant | -10/Materials Mutant | -9/Materials Resources | -11 -10 -9 ----------- Run | Yrd Mat Mat Matter Collected 436 | 204 37 195 Remotely . | . . . Salvage Created 337 | . 70 267 Parts 27 | . 9 18 Haulers Intercepted . | . . . Recyclers Shooed . | . . . Parts Field Recycled . | . . . Retrieved Matter . | . . . Parts Self-Destructed . | . . . Prevented . | . . . Kills | -11 -10 -9 ------- Run | Yrd Mat Mat Combat Hostiles Destroyed 12 | . 4 8 Guns 10 | . 4 6 Cannons 2 | . . 2 Classes Destroyed 4 | . 2 2 Swarmer 7 | . 3 4 Grunt 2 | . 1 1 Duelist 1 | . . 1 Sentry 2 | . . 2 Best Kill Streak 5 | . 3 5 Combat Bots Only 5 | . 3 5 Max Kills in Single Turn 1 | . 1 1 Gunslinging . | . . . Exploded . | . . . Melee . | . . . Uniques/NPCs Destroyed . | . . . Combat | -11 -10 -9 -------- Run | Yrd Mat Mat Hostile Shots Fired 164 | . 27 137 Missed 46 | . 14 32 Damage Taken 1538 | . 103 1435 Core 408 | . 7 401 Absorbed by Shields . | . . . Core Remaining (%) 98 | 100 97 . Volleys Fired 49 | . 10 39 Largest 2 | . 2 2 Hottest 120 | . 110 120 Shots Fired 79 | . 20 59 Gun 54 | . 19 35 Cannon 25 | . 1 24 Launcher . | . . . Special . | . . . Kinetic 15 | . 9 6 Thermal 64 | . 11 53 Explosive . | . . . Electromagnetic . | . . . Robot Hit Streak 14 | . 2 14 Robot Miss Streak 4 | . 4 2 Penetration Max . | . . . Secondary Targets . | . . . Shots Hit Robots 49 | . 6 43 Core Hits 18 | . 5 13 Critical Kills . | . . . Critical Parts Destroyed . | . . . Critical Strikes 3 | . 2 1 Burn 3 | . 2 1 Melee Attacks . | . . . Impact . | . . . Slashing . | . . . Piercing . | . . . Sneak Attacks . | . . . Combat Hostiles . | . . . Follow-up Attacks . | . . . Damage Inflicted 663 | . 72 591 Guns 432 | . 72 360 Cannons 230 | . . 230 Explosions . | . . . Melee . | . . . Ramming 1 | . . 1 Kinetic 99 | . 35 64 Thermal 563 | . 37 526 Explosive . | . . . Electromagnetic . | . . . Impact . | . . . Slashing . | . . . Piercing . | . . . Highest Corruption . | . . . Average Corruption . | . . . Corruption Purged . | . . . Corruption Blocked . | . . . Overload Shots . | . . . Overflow Damage . | . . . Projectiles . | . . . Explosions . | . . . Melee . | . . . Knockbacks . | . . . Impact . | . . . Kinetic . | . . . Secondary . | . . . Self-Inflicted Damage . | . . . Shots . | . . . Rammed 1 | . . 1 Targets Rammed 1 | . . 1 Kicked . | . . . Crushed . | . . . Highest Temperature 610 | . 63 610 Average Temperature 271 | . 27 357 Received Heat Transfer 318 | . 6 312 Effects 20 | . . 20 Shutdowns 1 | . . 1 Energy Bleed 2 | . . 2 Interference 6 | . . 6 Matter Decay 3 | . . 3 Short Circuit 2 | . . 2 Damage (minor) 2 | . . 2 Damage (major) 4 | . . 4 Siege Activations . | . . . Robots Corrupted . | . . . Combat Hostiles . | . . . Parts Fried . | . . . Impact Corruptions . | . . . Robots Melted . | . . . Combat Hostiles . | . . . Parts Melted 6 | . 2 4 Heat Transferred 1643 | . 259 1384 Parts Sabotaged . | . . . Parts Stolen . | . . . Parts Stripped . | . . . Power Chain Reactions . | . . . Alert | -11 -10 -9 ------- Run | Yrd Mat Mat Peak Influence 250 | . 130 250 Initial 54 | . . 54 Average 112 | . 31 185 Maximum Alert Level 1 | . . 1 Low Security (%) 63 | 100 100 33 Level 1 36 | . . 66 Level 2 . | . . . Level 3 . | . . . Level 4 . | . . . Level 5 . | . . . High Security . | . . . Max Security . | . . . Squads Dispatched 1 | . 1 . Investigation . | . . . Extermination . | . . . Reinforcement 1 | . 1 . Assault . | . . . Garrison . | . . . Intercept . | . . . Searches Triggered . | . . . Construction Impeded . | . . . Haulers Reinforced . | . . . Active Scanning Responses . | . . . Cargo Convoy Interrupts . | . . . Stealth | -11 -10 -9 --------- Run | Yrd Mat Mat Distress Signals 1 | . 1 . Communications Jammed . | . . . Distress Signals . | . . . Times Spotted 21 | . 6 15 Peak Tracking Total 7 | . 5 7 Tactical Retreats 2 | . . 2 Traps | -11 -10 -9 ------- Run | Yrd Mat Mat Traps Triggered . | . . . Indirectly . | . . . Trap Hack Attempts . | . . . Triggered . | . . . Disarmed . | . . . Reprogrammed . | . . . Reused . | . . . Traps Extracted . | . . . Installed . | . . . Triggered . | . . . Machines | -11 -10 -9 ---------- Run | Yrd Mat Mat Machines Disabled . | . . . Max in Single Turn . | . . . Machines Repaired . | . . . Machines Dismantled . | . . . Machines Sabotaged . | . . . Overloaded Fab Kills . | . . . Hacking | -11 -10 -9 --------- Run | Yrd Mat Mat Machines Accessed 4 | . 4 . Terminals 2 | . 2 . Fabricators . | . . . Repair Stations . | . . . Recycling Units 2 | . 2 . Scanalyzers . | . . . Garrison Access . | . . . Total Hacks 21 | . 21 . Successful 13 | . 13 . Failed 8 | . 8 . Catastrophic 1 | . 1 . Database Lockouts . | . . . Manual . | . . . Terminals 13 | . 13 . Fabricators . | . . . Repair Stations . | . . . Recycling Units 8 | . 8 . Scanalyzers . | . . . Garrison Access . | . . . Terminal Hacks 6 | . 6 . Alert Level 1 | . 1 . Locate Traps 1 | . 1 . Dispatch Records 2 | . 2 . Patrol Status 1 | . 1 . Hauler Manifests 1 | . 1 . Fabricator Hacks . | . . . Repair Station Hacks . | . . . Recycling Unit Hacks 7 | . 7 . Recycle Component 1 | . 1 . Process 3 | . 3 . Report Inventory 1 | . 1 . Retrieve Matter 2 | . 2 . Scanalyzer . | . . . Garrison Access Hacks . | . . . Unauthorized Hacks . | . . . Terminals . | . . . Fabricators . | . . . Repair Stations . | . . . Recycling Units . | . . . Scanalyzers . | . . . Garrison Access . | . . . Data Cores Recovered . | . . . Used . | . . . Hacking Detections 3 | . 3 . Full Trace Events 2 | . 2 . Feedback Events . | . . . Feedback Blocked . | . . . Robot Schematics Acquired . | . . . Robots Built . | . . . Authchips . | . . . Time . | . . . Total Robot Build Rating . | . . . Part Schematics Acquired . | . . . Parts Built . | . . . Authchips . | . . . Time . | . . . Total Part Build Rating . | . . . Parts Repaired . | . . . Time . | . . . Parts Recycled 1 | . 1 . Recycled Matter 75 | . 75 . Retrieved Matter 75 | . 75 . Retrieved Components . | . . . Parts Scanalyzed . | . . . Part Schematics Acquired . | . . . Parts Damaged . | . . . Bothacking | -11 -10 -9 ------------ Run | Yrd Mat Mat Used RIF Installer . | . . . Robots Hacked . | . . . Non-combat . | . . . Combat . | . . . Robot Hacks Applied . | . . . Relay Couplers Released . | . . . Fabnet Peak Effective % . | . . . Robots Rewired . | . . . Allies Hacked . | . . . Hacks Repelled . | . . . Allies | -11 -10 -9 -------- Run | Yrd Mat Mat Total Allies . | . . . Largest Group . | . . . Highest-Rated Group . | . . . Highest-Rated Ally . | . . . Total Orders . | . . . Ally Attacks . | . . . Total Damage . | . . . Kills . | . . . Allies Corrupted . | . . . Allies Melted . | . . . Intel | -11 -10 -9 ------- Run | Yrd Mat Mat Robot Analysis Total . | . . . Derelict Logs Recovered . | . . . Drone Launches . | . . . Drone Recoveries . | . . . Exploration | -11 -10 -9 ------------- Run | Yrd Mat Mat Turns Passed 730 | 85 245 400 Spaces Moved 342 | 62 160 120 Core 13 | 5 . 8 Treads 73 | . . 73 Legs 256 | 57 160 39 Wheels . | . . . Hover . | . . . Flight . | . . . Fastest Speed 50 | 50 120 120 Average Speed 148 | 114 120 203 Slowest Speed 900 | 120 120 900 Overloaded Moves . | . . . Propulsion Burnouts . | . . . Robots Hopped . | . . . Cave-ins Triggered . | . . . Exploration Rate (%) 17 | 4 35 13 Regions Visited 2 Branch Regions . Pre-discovered Areas . | . . . Known Exits Taken . | . . . Unknown Exits Taken 2 | 1 1 . Scrap Searched . | . . . Spaces Dug . | . . . Terrain Destroyed . | . . . Melee . | . . . Projectile . | . . . AOE . | . . . Terrain Rammed . | . . . Walls Destroyed . | . . . Machines Disabled . | . . . Actions | -11 -10 -9 --------- Run | Yrd Mat Mat Total 477 | 73 193 211 Wait 40 | . 15 25 Move 340 | 61 159 120 Hop . | . . . Pick Up 16 | 6 5 5 Fast Attach 11 | 6 1 4 Attach 9 | . . 9 Detach 1 | . . 1 Swap 5 | . 1 4 Drop 5 | . 2 3 Fire 49 | . 10 39 Melee . | . . . Ram 1 | . . 1 Kick . | . . . Crush . | . . . Escape Stasis . | . . . Rewire . | . . . Trap . | . . . Miscellaneous . | . . . Route ------- -11/Scrapyard -10/Materials -9/Materials (discovered 1 exit: [*Min]) History --------- Turn | Location | Event 3 | -11/Scrapyard | Discovered new exit (range 15) 86 | -11/Scrapyard | Entered Materials 323 | -10/Materials | Build established: Mutant 329 | -10/Materials | Discovered new exit (range 3) 331 | -10/Materials | Entered another Materials area 331 | -9/Materials | Evolved 2 slots: Propulsion x1, Utility x1 334 | -9/Materials | Discovered new exit (range 14) 452 | -9/Materials | Core integrity fell below 50% 492 | -9/Materials | Lost 5 parts (2p3n) 666 | -9/Materials | Core integrity fell below 20% 701 | -9/Materials | Lost 3 parts (1u2w) 731 | -9/Materials | Destroyed by G-34 Mercenary with Small Laser Last Messages --------------- G-34 Mercenary unfolds itself. K-01 Serf collects debris. Beam Cannon destroyed. Lgt. Treads severed. R-06 Scavenger collects Lgt. Treads. Sml. Storage Unit destroyed. Lgt. Treads severed. R-06 Scavenger collects Lgt. Treads. Assault Rifle destroyed. Lgt. Treads severed. Sml. Laser severed. Lgt. Treads severed. L-31 Rogue destroyed. R-06 Scavenger collects Sml. Laser. Slammed into R-06 Scavenger. R-06 Scavenger collects Lgt. Treads. Acquired Imp. Ion Engine. R-06 Scavenger collects Lgt. Treads. R-06 Scavenger collects Core Shielding. Med. Laser destroyed. Map ----- +----------------------------------------------------+ | ??????????????????????????????????????? | | ?????????????????????????????###??????? | | ???????????############### #??????? | | ???????????# #??????? | | ???????????# < #??????? | | ???????????# #??????? | | ?############### ####### #??????? | | ?# """ ## # #????????????? | | ?# "T" ## # #????????????? | | ?# ## + #????????????? | | ?# !! # # #????????????? | | ?# ! ## #######????????????? | | ?# % ## ##?????????????????? | | ?####"#####+### #?????????????????? | | ????# ####??????????????? | | ????# ???????? | | ????# ###### ???????? | | ????# ###### #?????????????????? | | ????# ############?????????????????? | | ????# ##! #?????????????????? | | ????# ## """ #?????????????????? | | ????# ## """"" ! #?????????????????? | | ????# ## """"" #?????????????????? | | ????# ## """"" #?????????????????? | | ????# ## """ #?????????????????? | | ????# g @ #?????????????????? | | ????# ## #?????????????????? | | ????# ######+#####?????????????????? | | ????# #??# %! #???????????????????? | | ????# ####??# #???????????????????? | | ????# ??????# #???????????????????? | | ????# ??????# #???????????????????? | | ????# ??????# #???????????????????? | | ????#+??????## ########?????????????? | | ?????????????# "% ??????? | | ?????????????# " ??????? | | ?????????????+ ??????? | | ?????????????# ##############???????? | | ?????????????# #????????????????????? | | ?????????????# #????????????????????? | | ?????????????# #????????????????????? | | ?????????????# #????????????????????? | | ?????????????# #????????????????????? | | ?????????????# #????????????????????? | | ?????????????# #????????????????????? | | ?????????????# #????????????????????? | | ?????????????# ?????????????????????? | | ?????????????# ?????????????????????? | | ?????????????# ?????????????????????? | | ?????????????? ?????????????????????? | +----------------------------------------------------+ Best States ------------- Heat Dissipation 28 Energy Generation 12 Energy Capacity 265 Matter Stores 300 Matter Capacity 300 Sight Range 16 Terrain Scan Density 10 Evasion (%) 55 Recoil Reduction 2 Item Schematics ----------------- None Robot Schematics ------------------ None Fabricated ------------ Nothing Alien Tech Used ----------------- None Achievements -------------- None Challenges ------------ None Game ------ Seed AuthchipGrenadeSword Manual? 0 Play Time 00:11:23 Cumulative 3.5 hours Start 2024.04.01 @ 19:43:48 End 2024.04.01 @ 19:53:09 Sessions 1 Manual Loads 0 Difficulty Rogue Special Mode None Game No. 12 Rogue 12 Adventurer 0 Explorer 0 Win Type - Total 0 Types 0/0/0/0/0/0/0/0/0 Lore% 11 Gallery% 11 Achievement% 10 Wizard Run 0 Options --------- Layout 1 ASCII 0 Keyboard 0 Movement Mouse Keybinds 0 Fullscreen 1 Font 24/Smallcaps Map View 50x35 Zoom Use 0% Tactical HUD 0 Map Filters NONE Filters NONE Steam 1 RUN: 39e595ba-5783-472d-9691-181b756d108f